Cogmind - Beta 15 @@@ ROGUE MODE // 2025.07.01 @ 15:12:43 Player: Rockstar Result: Destroyed by Y-64 Sentinel with KE Penetrator Performance ------------- Evolutions (3) 1500 Regions Visited (11) 2200 Robots Destroyed (63) 315 Value Destroyed (1560) 1560 Prototype IDs (23) 460 Alien Tech Used (0) 0 Bonus (544) 544 TOTAL SCORE: 6579 Bonus ------- High Alert Combat Kills 44 Entered Garrisons 200 Aligned with FarCom 300 Cogmind --------- Core Integrity 0/700 Matter 119/300 Energy 99/100 System Corruption 13% Temperature Cool (9) Movement Core (350) Ox6 Location -7/Lower Caves Parts ------- > --- POWER (2) -------- (None) > --- PROPULSION (4) --- (None) > --- UTILITY (5) ------ Large Storage Unit > --- WEAPON (2) ------- (None) > --- INVENTORY (15) --- (None) Peak State ------------ > --- POWER ------------ Deuterium Engine Deuterium Engine > --- PROPULSION ------- Flying Fortress v7 > --- UTILITY ---------- Large Storage Unit High-capacity Matter Pod Reaction Control System Hardened Light Armor Plating > --- WEAPON ----------- Autogun Autogun > --- INVENTORY -------- Improved Ion Engine Improved Ion Engine Improved Ion Engine Improved Treads Improved Treads Improved Treads Advanced Treads Cryofiber Web Core Shielding Particle Gun Ion Cannon Heavy Assault Rifle Autogun Rocket Launcher [Rating: 52] Favorites ----------- Power Improved Ion Engine Engine Improved Ion Engine Propulsion Improved Treads Treads Improved Treads Flight Unit Flying Fortress v7 Utility Propulsion Shielding Device Reaction Control System Storage Large Storage Unit Processor Advanced Targeting Computer Protection Propulsion Shielding Weapon Autogun Energy Gun Particle Gun Energy Cannon Ion Cannon Ballistic Gun Autogun Launcher Rocket Launcher Build | -11 -10 -10 -9 -9 -9 -8 -8 -8 -8 -7 -7 ------- Run | Yrd Mat Min Mat Min Exi Min Mat Gar Mat Fac Low Slots Evolved 6 | . . . 2 . . . 2 . . 2 . Power 1 | . . . 1 . . . . . . . . Propulsion 2 | . . . . . . . 2 . . . . Utility 3 | . . . 1 . . . . . . 2 . Weapon . | . . . . . . . . . . . . Parts Attached 48 | 6 8 1 20 . . 2 3 2 . 1 5 Power 11 | 1 . . 8 . . . 1 . . 1 . Engine 11 | 1 . . 8 . . . 1 . . 1 . Core . | . . . . . . . . . . . . Reactor . | . . . . . . . . . . . . Propulsion 8 | 2 2 . . . . 1 1 . . . 2 Treads 7 | 2 2 . . . . 1 . . . . 2 Leg . | . . . . . . . . . . . . Wheel . | . . . . . . . . . . . . Hover . | . . . . . . . . . . . . Flight 1 | . . . . . . . 1 . . . . Utility 17 | 1 4 1 7 . . 1 1 2 . . . Device 5 | . 3 . . . . . 1 1 . . . Storage 4 | 1 . 1 2 . . . . . . . . Processor 1 | . . . . . . 1 . . . . . Hackware . | . . . . . . . . . . . . Protection 7 | . 1 . 5 . . . . 1 . . . Artifact . | . . . . . . . . . . . . Weapon 12 | 2 2 . 5 . . . . . . . 3 Energy Gun 1 | . . . . . . . . . . . 1 Energy Cannon 1 | . . . . . . . . . . . 1 Ballistic Gun 8 | 2 2 . 3 . . . . . . . 1 Ballistic Cannon . | . . . . . . . . . . . . Launcher 2 | . . . 2 . . . . . . . . Special Weapon . | . . . . . . . . . . . . Impact Weapon . | . . . . . . . . . . . . Slashing Weapon . | . . . . . . . . . . . . Piercing Weapon . | . . . . . . . . . . . . Special Melee Weapon . | . . . . . . . . . . . . Unidentified Prototypes . | . . . . . . . . . . . . Parts Lost 24 | . . . 2 . . . . 1 . . 21 Power 4 | . . . . . . . . . . . 4 Propulsion 4 | . . . . . . . . . . . 4 Utility 7 | . . . 1 . . . . 1 . . 5 Weapon 9 | . . . 1 . . . . . . . 8 Highest Loss Streak 16 | . . . 1 . . . . 1 . . 16 To Critical Strikes 1 | . . . 1 . . . . . . . . Average Backups 10 | 1 6 8 9 12 12 11 13 14 14 12 8 Power 2 | . 1 2 2 4 3 2 2 2 2 2 1 Propulsion 2 | . 2 2 2 2 2 2 2 3 3 4 3 Utility 1 | . . . 1 2 2 2 4 4 3 1 . Weapon 3 | . 1 4 3 4 4 4 4 4 4 5 2 Tool/Special . | . . . . . . . . . . . . Unused Backups 5 | . 3 . 1 . . . . . 1 . . Power 1 | . . . 1 . . . . . . . . Propulsion 2 | . 2 . . . . . . . . . . Utility 1 | . . . . . . . . . 1 . . Weapon 1 | . 1 . . . . . . . . . . Tool/Special . | . . . . . . . . . . . . Average Slot Usage (%) 91 | . 93 100 97 100 100 100 72 68 72 75 66 Engine 19 | . 14 14 22 22 22 22 18 18 18 15 11 Treads 17 | . 28 28 22 22 22 22 1 . . . 1 Flight 1 | . . . . . . . 7 9 9 7 6 Device 2 | . 5 . . . . . 3 9 9 13 10 Storage 11 | . 14 14 11 11 11 11 9 9 9 14 14 Protection 15 | . 3 14 20 22 22 21 9 5 9 7 6 Ballistic Gun 19 | . 26 28 20 22 22 22 18 10 18 15 9 Peak Build Rating 52 | 6 13 12 17 17 20 22 49 50 50 52 52 Average Rating 23 | 4 9 12 14 17 19 20 46 47 49 51 43 On Entrance 25 | . 6 12 12 17 17 20 22 48 49 50 51 Naked Turns . | . . . . . . . . . . . . Heaviest Build 51 | 13 17 22 42 42 42 42 44 48 48 47 51 Greatest Support 52 | 40 52 46 46 46 46 46 50 50 50 50 50 Greatest Overweight (x) 8 | . . . . . . . . . . . 8 Average Overweight (x) . | . . . . . . . . . . . . Largest Inventory Capacity 15 | 8 8 10 15 15 15 15 15 15 15 15 15 Average Capacity 12 | 7 8 9 10 15 15 15 15 15 15 15 15 Most Carried 15 | 4 8 9 12 13 15 15 15 14 15 15 12 Average Carried 11 | 1 6 8 9 12 14 14 13 13 14 12 8 Final Capacity 15 | 8 8 10 15 15 15 15 15 15 15 15 15 Final Carried 15 | 4 8 9 12 13 15 15 14 14 15 12 . Class Distribution -------------------- 100% | Mutant Dominant Class ---------------- Mutant | -10/Materials Mutant | -10/Mines Mutant | -9/Materials Mutant | -9/Mines Mutant | -9/Exiles Mutant | -8/Mines Mutant | -8/Materials Mutant | -8/Garrison Mutant | -8/Materials Mutant | -7/Factory Mutant | -7/Lower Caves Resources | -11 -10 -10 -9 -9 -9 -8 -8 -8 -8 -7 -7 ----------- Run | Yrd Mat Min Mat Min Exi Min Mat Gar Mat Fac Low Matter Collected 1740 | 168 62 184 839 127 . 10 . . 133 . 217 Remotely . | . . . . . . . . . . . . Salvage Created 1508 | . 136 . 895 89 . . . 98 32 . 258 Parts 117 | . 16 . 67 9 . . . 6 1 . 18 Haulers Intercepted . | . . . . . . . . . . . . Recyclers Shooed 2 | . . . 2 . . . . . . . . Parts Field Recycled . | . . . . . . . . . . . . Retrieved Matter . | . . . . . . . . . . . . Parts Self-Destructed 18 | . . . . . . . . . . . 18 Prevented . | . . . . . . . . . . . . Kills | -11 -10 -10 -9 -9 -9 -8 -8 -8 -8 -7 -7 ------- Run | Yrd Mat Min Mat Min Exi Min Mat Gar Mat Fac Low Combat Hostiles Destroyed 58 | . 5 . 28 5 . . . 7 2 . 11 Guns 37 | . 5 . 21 5 . . . . 2 . 4 AOE 21 | . . . 7 . . . . 7 . . 7 Classes Destroyed 8 | . 3 . 3 1 . . . . . . 1 Recycler 1 | . . . 1 . . . . . . . . Operator 2 | . 1 . 1 . . . . . . . . Watcher 3 | . 2 . 1 . . . . . . . . Swarmer 32 | . 5 . 13 4 . . . 3 2 . 5 Grunt 18 | . . . 9 . . . . 4 . . 5 Duelist 1 | . . . . . . . . . . . 1 Sentry 6 | . . . 6 . . . . . . . . Assembled 1 | . . . . 1 . . . . . . . Best Kill Streak 9 | . 4 . 9 5 . . . 4 2 . 7 Combat Bots Only 7 | . 3 . 7 5 . . . 4 2 . 7 Max Kills in Single Turn 5 | . 1 . 5 2 . . . 4 1 . 4 Gunslinging . | . . . . . . . . . . . . Exploded 5 | . . . 5 . . . . 4 . . 4 Melee . | . . . . . . . . . . . . Uniques/NPCs Destroyed . | . . . . . . . . . . . . Combat | -11 -10 -10 -9 -9 -9 -8 -8 -8 -8 -7 -7 -------- Run | Yrd Mat Min Mat Min Exi Min Mat Gar Mat Fac Low Hostile Shots Fired 430 | . 15 . 137 12 . . . 36 23 9 198 Missed 139 | . 2 . 42 4 . . . 14 11 7 59 Hits 291 | . 13 . 95 8 . . . 22 12 2 139 Melee 9 | . . . . 4 . . . . . . 5 Projectile 282 | . 13 . 95 4 . . . 22 12 2 134 Critical Strikes 12 | . . . 3 . . . . 1 . . 8 Actively Blocked 2 | . . . 1 . . . . . . . 1 Damage Taken 4814 | . 104 . 1022 135 . . . 311 105 11 3126 Core 940 | . . . 149 29 . . . 44 9 . 709 Absorbed by Shields 18 | . . . . . . . . 18 . . . Redirected to Shielding 150 | . 2 . 76 9 . . . 18 . . 45 Core Remaining (%) 86 | 100 . 100 . . . 55 . . 90 . . Volleys Fired 162 | . 13 . 85 9 . 1 . 10 7 1 36 Largest 2 | . 2 . 2 2 . 2 . 2 2 2 2 Hottest 95 | . 46 . 66 46 . 46 . 66 46 46 95 Shots Fired 302 | . 26 . 158 18 . 2 . 20 14 2 62 Gun 269 | . 26 . 154 18 . 2 . 6 14 2 47 Cannon 7 | . . . . . . . . . . . 7 Launcher 26 | . . . 4 . . . . 14 . . 8 Special . | . . . . . . . . . . . . Kinetic 259 | . 26 . 154 18 . 2 . 6 14 2 37 Thermal 17 | . . . . . . . . . . . 17 Explosive 26 | . . . 4 . . . . 14 . . 8 Electromagnetic . | . . . . . . . . . . . . Robot Hit Streak 13 | . 5 . 13 4 . . . 4 2 3 13 Robot Miss Streak 5 | . 3 . 4 2 . . . 4 5 1 2 Penetration Max . | . . . . . . . . . . . . Secondary Targets 6 | . . . 4 1 . . . . 1 . . Max Gunslinging Chain 1 | . . . 1 1 . . . . 1 . . Shots Hit Robots 179 | . 13 . 101 10 . . . 6 6 1 42 Core Hits 101 | . 11 . 41 6 . . . 13 2 . 28 Critical Kills . | . . . . . . . . . . . . Critical Parts Destroyed . | . . . . . . . . . . . . Critical Strikes . | . . . . . . . . . . . . Melee Attacks . | . . . . . . . . . . . . Impact . | . . . . . . . . . . . . Slashing . | . . . . . . . . . . . . Piercing . | . . . . . . . . . . . . Sneak Attacks . | . . . . . . . . . . . . Combat Hostiles . | . . . . . . . . . . . . Follow-up Attacks . | . . . . . . . . . . . . Damage Inflicted 4831 | . 169 . 2104 169 . 13 . 593 87 14 1682 Guns 2655 | . 169 . 1549 169 . 13 . 35 87 14 619 Cannons 165 | . . . . . . . . . . . 165 Explosions 2001 | . . . 545 . . . . 558 . . 898 Melee . | . . . . . . . . . . . . Ramming 10 | . . . 10 . . . . . . . . Kinetic 2556 | . 169 . 1549 169 . 13 . 35 87 14 520 Thermal 323 | . . . 59 . . . . . . . 264 Explosive 1942 | . . . 486 . . . . 558 . . 898 Electromagnetic . | . . . . . . . . . . . . Impact . | . . . . . . . . . . . . Slashing . | . . . . . . . . . . . . Piercing . | . . . . . . . . . . . . Highest Corruption 13 | . . . . . . . . . . . 13 Average Corruption 13 | . . . . . . . . . . . 13 Corruption Purged . | . . . . . . . . . . . . Corruption Blocked . | . . . . . . . . . . . . Effects 1 | . . . . . . . . . . . 1 Energy Discharges 1 | . . . . . . . . . . . 1 Overload Shots . | . . . . . . . . . . . . Overflow Damage 42 | . . . 26 . . . . . . . 16 Projectiles . | . . . . . . . . . . . . Explosions 42 | . . . 26 . . . . . . . 16 Melee . | . . . . . . . . . . . . Knockbacks 1 | . . . 1 . . . . . . . . Impact 1 | . . . 1 . . . . . . . . Kinetic . | . . . . . . . . . . . . Secondary . | . . . . . . . . . . . . Self-Inflicted Damage 46 | . . . . . . . . 22 . . 24 Shots 3 | . . . . . . . . 1 . . 2 Rammed 3 | . . 1 2 . . . . . . . . Targets Rammed 3 | . . 1 2 . . . . . . . . Kicked . | . . . . . . . . . . . . Crushed . | . . . . . . . . . . . . Highest Temperature 184 | . 12 . 142 28 . 14 . 149 147 . 184 Average Temperature 46 | . 6 . 38 13 . 10 . 48 68 . 70 Received Heat Transfer 955 | . . . 294 . . . . 145 . . 516 Siege Activations . | . . . . . . . . . . . . Martial Activations . | . . . . . . . . . . . . Shielding Activations . | . . . . . . . . . . . . Robots Disrupted . | . . . . . . . . . . . . Combat Hostiles . | . . . . . . . . . . . . Robots Corrupted . | . . . . . . . . . . . . Combat Hostiles . | . . . . . . . . . . . . Parts Fried . | . . . . . . . . . . . . Impact Corruptions . | . . . . . . . . . . . . Robots Melted . | . . . . . . . . . . . . Combat Hostiles . | . . . . . . . . . . . . Parts Melted . | . . . . . . . . . . . . Heat Transferred 531 | . . . 50 . . . . . . . 481 Parts Sabotaged . | . . . . . . . . . . . . Parts Stolen . | . . . . . . . . . . . . Parts Stripped . | . . . . . . . . . . . . Power Chain Reactions . | . . . . . . . . . . . . Alert | -11 -10 -10 -9 -9 -9 -8 -8 -8 -8 -7 -7 ------- Run | Yrd Mat Min Mat Min Exi Min Mat Gar Mat Fac Low Maximum Alert Level 2 | . . . 2 1 . . . . . . . Low Security (%) 68 | 100 100 100 14 . . 100 100 100 100 100 . Level 1 20 | . . . 50 100 . . . . . . . Level 2 10 | . . . 35 . . . . . . . . Level 3 . | . . . . . . . . . . . . Level 4 . | . . . . . . . . . . . . Level 5 . | . . . . . . . . . . . . High Security . | . . . . . . . . . . . . Max Security . | . . . . . . . . . . . . Peak Influence 476 | . 65 21 476 270 . . . 195 94 4 . Initial 180 | . . 21 . 180 . . . 3 94 4 . Average 123 | . 19 3 323 242 . . . 131 27 . . Influence Increases 1605 | . 154 . 806 90 . . 6 202 47 . 300 Destroy 0b10 Robot/C 1140 | . 100 . 560 80 . . . 140 40 . 220 Destroy 0b10 Robot/NC 30 | . 15 . 15 . . . . . . . . Destroy Leader 206 | . 24 . 142 10 . . . 10 . . 20 Successful Hack 13 | . . . . . . . 6 . 7 . . Disable Machine 30 | . . . 30 . . . . . . . . Destroy Structure 66 | . . . 29 . . . . 37 . . . Lose Combat Pursuer 120 | . 15 . 30 . . . . 15 . . 60 Influence Decreases 1605 | . 99 55 344 332 220 . . 13 232 10 300 Entered New Map 646 | . . 34 . 282 220 . . 3 101 6 . Time Decay 695 | . 99 21 324 50 . . . . 37 4 160 Lost Part 170 | . . . 20 . . . . 10 . . 140 Purge Threat 94 | . . . . . . . . . 94 . . Squads Dispatched 6 | . . . 4 . . . . . 1 1 . Investigation . | . . . . . . . . . . . . Extermination . | . . . . . . . . . . . . Reinforcement 6 | . . . 4 . . . . . 1 1 . Assault . | . . . . . . . . . . . . Garrison . | . . . . . . . . . . . . Intercept . | . . . . . . . . . . . . Searches Triggered . | . . . . . . . . . . . . Construction Impeded . | . . . . . . . . . . . . Haulers Reinforced . | . . . . . . . . . . . . Active Scanning Responses . | . . . . . . . . . . . . Cargo Convoy Interrupts . | . . . . . . . . . . . . Stealth | -11 -10 -10 -9 -9 -9 -8 -8 -8 -8 -7 -7 --------- Run | Yrd Mat Min Mat Min Exi Min Mat Gar Mat Fac Low Distress Signals 6 | . . . 5 . . 1 . . . . . Communications Jammed . | . . . . . . . . . . . . Distress Signals . | . . . . . . . . . . . . Times Spotted 79 | . 9 . 37 3 . . . 8 4 1 17 Peak Tracking Total 9 | . 4 . 9 2 . 1 . 6 4 1 8 Tactical Retreats 6 | . 1 . 1 . . . . 1 . . 3 Traps | -11 -10 -10 -9 -9 -9 -8 -8 -8 -8 -7 -7 ------- Run | Yrd Mat Min Mat Min Exi Min Mat Gar Mat Fac Low Traps Triggered 1 | . . . . . . . . 1 . . . Indirectly . | . . . . . . . . . . . . Trap Hack Attempts . | . . . . . . . . . . . . Triggered . | . . . . . . . . . . . . Disarmed . | . . . . . . . . . . . . Reprogrammed . | . . . . . . . . . . . . Reused . | . . . . . . . . . . . . Traps Extracted . | . . . . . . . . . . . . Installed . | . . . . . . . . . . . . Triggered . | . . . . . . . . . . . . Machines | -11 -10 -10 -9 -9 -9 -8 -8 -8 -8 -7 -7 ---------- Run | Yrd Mat Min Mat Min Exi Min Mat Gar Mat Fac Low Machines Disabled 3 | . . . 2 . . . . . . . 1 Max in Single Turn 1 | . . . 1 . . . . . . . 1 Machines Repaired . | . . . . . . . . . . . . Machines Dismantled . | . . . . . . . . . . . . Machines Sabotaged . | . . . . . . . . . . . . Overloaded Fab Kills . | . . . . . . . . . . . . Hacking | -11 -10 -10 -9 -9 -9 -8 -8 -8 -8 -7 -7 --------- Run | Yrd Mat Min Mat Min Exi Min Mat Gar Mat Fac Low Machines Accessed 11 | . 1 . 1 . 5 . 1 . 2 . 1 Terminals 4 | . 1 . 1 . . . . . 2 . . Fabricators . | . . . . . . . . . . . . Repair Stations . | . . . . . . . . . . . . Recycling Units . | . . . . . . . . . . . . Scanalyzers . | . . . . . . . . . . . . Garrison Access 1 | . . . . . . . 1 . . . . Total Hacks 66 | . 3 . 2 . 50 . 2 . 8 . 1 Successful 58 | . 1 . 1 . 50 . 2 . 3 . 1 Failed 8 | . 2 . 1 . . . . . 5 . . Catastrophic 3 | . . . 1 . . . . . 2 . . Database Lockouts . | . . . . . . . . . . . . Manual 5 | . . . . . 1 . . . 4 . . Terminals 13 | . 3 . 2 . . . . . 8 . . Fabricators . | . . . . . . . . . . . . Repair Stations . | . . . . . . . . . . . . Recycling Units . | . . . . . . . . . . . . Scanalyzers . | . . . . . . . . . . . . Garrison Access 2 | . . . . . . . 2 . . . . Terminal Hacks 56 | . 1 . 1 . 50 . . . 3 . 1 Record 49 | . . . . . 49 . . . . . . Open Door 1 | . . . . . . . . . . . 1 Branch Access Points 1 | . . . . . . . . . 1 . . Scanalyzer Index 1 | . 1 . . . . . . . . . . Alert Level 1 | . . . . . . . . . 1 . . Unreport Threat 1 | . . . . . . . . . 1 . . Recall Investigation 1 | . . . 1 . . . . . . . . Proto ID Catalog 1 | . . . . . 1 . . . . . . Fabricator Hacks . | . . . . . . . . . . . . Repair Station Hacks . | . . . . . . . . . . . . Recycling Unit Hacks . | . . . . . . . . . . . . Scanalyzer . | . . . . . . . . . . . . Garrison Access Hacks 2 | . . . . . . . 2 . . . . Unlock Access 1 | . . . . . . . 1 . . . . Coupler Status 1 | . . . . . . . 1 . . . . Unauthorized Hacks . | . . . . . . . . . . . . Terminals . | . . . . . . . . . . . . Fabricators . | . . . . . . . . . . . . Repair Stations . | . . . . . . . . . . . . Recycling Units . | . . . . . . . . . . . . Scanalyzers . | . . . . . . . . . . . . Garrison Access . | . . . . . . . . . . . . Data Cores Recovered 1 | . 1 . . . . . . . . . . Used . | . . . . . . . . . . . . Hacking Detections 4 | . 1 . 1 . . . . . 2 . . Full Trace Events . | . . . . . . . . . . . . Feedback Events . | . . . . . . . . . . . . Feedback Blocked . | . . . . . . . . . . . . Robot Schematics Acquired . | . . . . . . . . . . . . Robots Built . | . . . . . . . . . . . . Authchips . | . . . . . . . . . . . . Time . | . . . . . . . . . . . . Total Robot Build Rating . | . . . . . . . . . . . . Part Schematics Acquired . | . . . . . . . . . . . . Parts Built . | . . . . . . . . . . . . Authchips . | . . . . . . . . . . . . Time . | . . . . . . . . . . . . Total Part Build Rating . | . . . . . . . . . . . . Parts Repaired . | . . . . . . . . . . . . Time . | . . . . . . . . . . . . Parts Recycled . | . . . . . . . . . . . . Recycled Matter . | . . . . . . . . . . . . Retrieved Matter . | . . . . . . . . . . . . Retrieved Components . | . . . . . . . . . . . . Parts Scanalyzed . | . . . . . . . . . . . . Part Schematics Acquired . | . . . . . . . . . . . . Parts Damaged . | . . . . . . . . . . . . Bothacking | -11 -10 -10 -9 -9 -9 -8 -8 -8 -8 -7 -7 ------------ Run | Yrd Mat Min Mat Min Exi Min Mat Gar Mat Fac Low Used RIF Installer . | . . . . . . . . . . . . Robots Hacked . | . . . . . . . . . . . . Non-combat . | . . . . . . . . . . . . Combat . | . . . . . . . . . . . . Robot Hacks Applied . | . . . . . . . . . . . . Relay Couplers Released . | . . . . . . . . . . . . Fabnet Peak Effective % . | . . . . . . . . . . . . Robots Rewired . | . . . . . . . . . . . . Allies Hacked . | . . . . . . . . . . . . Hacks Repelled . | . . . . . . . . . . . . Allies | -11 -10 -10 -9 -9 -9 -8 -8 -8 -8 -7 -7 -------- Run | Yrd Mat Min Mat Min Exi Min Mat Gar Mat Fac Low Total Allies . | . . . . . . . . . . . . Largest Group . | . . . . . . . . . . . . Highest-Rated Group . | . . . . . . . . . . . . Highest-Rated Ally . | . . . . . . . . . . . . Total Orders . | . . . . . . . . . . . . Ally Attacks . | . . . . . . . . . . . . Total Damage . | . . . . . . . . . . . . Kills . | . . . . . . . . . . . . Allies Corrupted . | . . . . . . . . . . . . Allies Melted . | . . . . . . . . . . . . Intel | -11 -10 -10 -9 -9 -9 -8 -8 -8 -8 -7 -7 ------- Run | Yrd Mat Min Mat Min Exi Min Mat Gar Mat Fac Low Active Infowar (turns) . | . . . . . . . . . . . . Robot Analysis Total . | . . . . . . . . . . . . Derelict Logs Recovered 2 | . . . . . . . . . . . 2 Drone Launches . | . . . . . . . . . . . . Drone Recoveries . | . . . . . . . . . . . . Exploration | -11 -10 -10 -9 -9 -9 -8 -8 -8 -8 -7 -7 ------------- Run | Yrd Mat Min Mat Min Exi Min Mat Gar Mat Fac Low Turns Passed 3545 | 84 330 169 744 119 756 532 57 148 105 141 360 Spaces Moved 2594 | 47 167 104 292 59 472 310 86 189 159 260 449 Core 7 | 3 . . . . . . . . . . 4 Treads 1451 | 44 167 104 292 59 472 310 . . . . 3 Legs . | . . . . . . . . . . . . Wheels . | . . . . . . . . . . . . Hover . | . . . . . . . . . . . . Flight 1136 | . . . . . . . 86 189 159 260 442 Fastest Speed 50 | 50 160 160 160 160 160 160 50 50 50 50 50 Average Speed 112 | 152 160 160 160 160 160 160 50 50 50 50 54 Slowest Speed 450 | 160 160 160 160 160 160 160 50 50 50 50 450 Overloaded Moves . | . . . . . . . . . . . . Propulsion Burnouts . | . . . . . . . . . . . . Robots Hopped 3 | . . . . . . . . . . . 3 Potential Cave-ins . | . . . . . . . . . . . . Cave-ins Triggered 1 | . . . . . . . . . . . 1 Exploration Rate (%) 30 | 5 21 22 28 18 92 60 6 28 17 7 57 Regions Visited 11 Branch Regions 5 Pre-discovered Areas 1 | . . . . . 1 . . . . . . Known Exits Taken 1 | . . . . . . . 1 . . . . Unknown Exits Taken 9 | 1 1 1 1 1 1 1 . . 1 1 . Scrap Searched 3 | . . . . 1 . 1 . . . . 1 Spaces Dug 12 | . . . . . . . . . . . 12 Terrain Destroyed 176 | . . . 37 . . . . 71 . . 68 Melee . | . . . . . . . . . . . . Projectile . | . . . . . . . . . . . . AOE 176 | . . . 37 . . . . 71 . . 68 Terrain Rammed . | . . . . . . . . . . . . Walls Destroyed . | . . . . . . . . . . . . Machines Disabled . | . . . . . . . . . . . . Actions | -11 -10 -10 -9 -9 -9 -8 -8 -8 -8 -7 -7 --------- Run | Yrd Mat Min Mat Min Exi Min Mat Gar Mat Fac Low Total 2963 | 57 210 107 438 68 474 345 101 220 175 267 501 Wait 58 | . . . 27 . . 28 . . 3 . . Move 2578 | 46 166 103 291 58 471 309 86 188 158 259 443 Hop 3 | . . . . . . . . . . . 3 Pick Up 30 | 5 9 1 2 1 1 2 4 1 4 . . Fast Attach 14 | 5 5 . 2 . . 1 1 . . . . Attach 23 | 1 . . 4 . . . 2 1 . 2 13 Detach 6 | . 3 . 1 . . . 2 . . . . Swap 39 | . 3 1 17 . . 1 2 5 . 4 6 Drop 32 | . 11 1 7 . 2 3 4 . 3 1 . Fire 162 | . 13 . 85 9 . 1 . 10 7 1 36 Melee . | . . . . . . . . . . . . Ram . | . . . . . . . . . . . . Kick . | . . . . . . . . . . . . Crush 3 | . . 1 2 . . . . . . . . Escape Stasis 15 | . . . . . . . . 15 . . . Rewire . | . . . . . . . . . . . . Trap . | . . . . . . . . . . . . Miscellaneous . | . . . . . . . . . . . . Route ------- -11/Scrapyard -10/Materials -10/Mines -9/Materials -9/Mines -9/Exiles (discovered 2 exits: [*Min x2]) -8/Mines -8/Materials -8/Garrison -8/Materials (discovered 2 exits: *Fac / Sto) -7/Factory -7/Lower Caves History --------- Turn | Location | Event 3 | -11/Scrapyard | Discovered new exit (range 16) 85 | -11/Scrapyard | Entered Materials 150 | -10/Materials | Discovered new exit (range 12) 329 | -10/Materials | Build established: Mutant 415 | -10/Materials | Entered Mines 433 | -10/Mines | Met a Derelict bent on vengeance 557 | -10/Mines | Discovered new exit (range 8) 584 | -10/Mines | Entered Materials 584 | -9/Materials | Evolved 2 slots: Power x1, Utility x1 710 | -9/Materials | Destroyed 7 combat bots 1303 | -9/Materials | Discovered new exit (range 6) 1328 | -9/Materials | Entered Mines 1398 | -9/Mines | Excavation squad dispatched 1398 | -9/Mines | A large section of the Mines collapsed 1439 | -9/Mines | Deemed a non-threat by the Exiles lab entrance 1439 | -9/Mines | Discovered new exit (range 5) 1447 | -9/Mines | Entered Exiles 1470 | -9/Exiles | Discovered new exit (range 15) 1491 | -9/Exiles | Met 8R-AWN 1527 | -9/Exiles | Met EX-HEX 1582 | -9/Exiles | Met EX-BIN 1612 | -9/Exiles | Aligned with FarCom system 1614 | -9/Exiles | Given EX-Vault access code 1679 | -9/Exiles | Opened EX-Vault 1693 | -9/Exiles | Found Flying Fortress v7 1752 | -9/Exiles | Warned to stay clear of 0b10 Research branches 1798 | -9/Exiles | Met EX-DEC 1924 | -9/Exiles | Visited The Gauntlet 2129 | -9/Exiles | Learned location of Zion (-7) 2185 | -9/Exiles | Discovered new exit (range 14) 2203 | -9/Exiles | Left Exiles lab with Flying Fortress v7 2203 | -9/Exiles | Entered Mines 2728 | -8/Mines | Discovered new exit (range 4) 2735 | -8/Mines | Entered Materials 2735 | -8/Materials | Evolved 2 slots: Propulsion x2 2792 | -8/Materials | Identified exit to Garrison 2792 | -8/Materials | Entered Garrison 2819 | -8/Garrison | Triggered checkpoint 2823 | -8/Garrison | Triggered checkpoint 2910 | -8/Garrison | Triggered checkpoint 2935 | -8/Garrison | Discovered new exit (range 10) 2940 | -8/Garrison | Entered Materials 2958 | -8/Materials | Identified exit to Storage 3036 | -8/Materials | Discovered new exit (range 10) 3045 | -8/Materials | Entered Factory 3045 | -7/Factory | Evolved 2 slots: Utility x2 3179 | -7/Factory | Discovered new exit (range 15) 3186 | -7/Factory | Entered Lower Caves 3265 | -7/Lower Caves | Encountered a Warlord checkpoint 3345 | -7/Lower Caves | Attracted the attention of an 0b10 outpost 3373 | -7/Lower Caves | Lost 3 parts (1p1u1w) 3375 | -7/Lower Caves | Destroyed 7 combat bots 3411 | -7/Lower Caves | Spotted B-75 Beast 3412 | -7/Lower Caves | Learned location of 1 exit from Proximity Caves 3523 | -7/Lower Caves | Core integrity fell below 50% 3533 | -7/Lower Caves | Crushed by falling debris 3533 | -7/Lower Caves | System corruption reached 10% 3542 | -7/Lower Caves | Core integrity fell below 20% 3546 | -7/Lower Caves | Destroyed by Y-64 Sentinel with KE Penetrator Last Messages --------------- Penetrated by Slug. The unstable cave ceiling collapses. Crushed by falling debris. [Achievement: Unlikely Earthworm] Hcp. Matter Pod destroyed. System corrupted by crushing effect (+3). Deuterium Engine destroyed. System corrupted by crushing effect (+5). Hrd. Light Armor Plating destroyed. System corrupted by crushing effect (+5). Slug penetrates Earth. Penetrated by Slug. System corrupted: Energy discharge (-21). The unstable cave ceiling collapses. B-75 Beast crushed by falling debris. B-75 Beast system corrupted by crushing effect. Ion Cannon destroyed. Penetrated by Slug. Knocked back. Acquired 15 matter. Map ----- +----------------------------------------------------+ | | | | | | | | | | | ?????????????????????????????????????????????????? | | ?????????????????????????????????????????????????? | | ?????????????????????????????????????????????????? | | ?????????????????????????????????????????????????? | | ?????????????????????????????????????????????????? | | ?????????????????????????????????????????????????? | | ?????????????????????????????????????????????????? | | ?????????????????????????????????????????????????? | | ?????????????????????????????????????????????????? | | ?????????????????????????????????????????????????? | | ???????????????????????????????????###???????????? | | ????????????????????????????????####!###?????????? | | ??????????????????????????????### #/=#X#?????????? | | ??????????????????????????????# # # #?????????? | | ?????????????##??????????????## # ##|# ###???????? | | ??????###???? ##????????????# # ### # ##??????? | | ????### ???? #?####???????# """#?# ## #??????? | | ????? ??? #?# #??###?#"" ### ## #??????? | | ????## #### #?# ### ###" % # # #??????? | | ????? ##?# ##% ### ##??????? | | ?????? $ #### # @ = ##???????? | | ???????# # #????????? | | ???????# ## BB ###????????? | | ???????? ###### ### Y BB ###??????????? | | ?????????? #???## ## % #####????????? | | ????????????"" #?### ## #????????? | | ?????????????# #?# #### #????????? | | ?????????????# "## # ### ##?# ## #????????? | | ?????????????# #?## ### #### #?#??????? | | ?????????????# ##?## #" ## # # #??????? | | ?????????????###### # #??## "" #??????? | | ?????????????????# #???## " # ##?????? | | ?????????????????# # ####??## #### #?????? | | ?????????????????## ## #?## # ### #?????? | | ?????????????????### #?# # # # #????? | | ?????????????????# ## # # # #???? | | ?????????????????# # ## #???? | | ?????????????# ?## ## ### # #??? | | ?????????????? ??## # ####?## # # # #?? | | ??????????? ??? ??# ## ##?????? # #???? | | ??????????? ?? ### ?## #???????# ??? | | ???????????? ? ??# #????????# ## #?? | | ?????????????# #### #??????#?? #? ##?? | | ?????????????? ##?# ##??? ##?? ##?? ##??? | | ????????????? ### ??## ## ##?# ????#???? | +----------------------------------------------------+ Best States ------------- Heat Dissipation 34 Coolant Potential 50 Energy Generation 23 Energy Capacity 450 Matter Stores 485 Matter Capacity 500 Sight Range 16 Terrain Scan Density 10 Additional Mass Support 6 Base Temperature (-) 100 Armor Coverage 150 Core Shielding 20 Propulsion Shielding 33 Evasion (%) 68 Targeting Accuracy 8 Recoil Reduction 4 Item Schematics ----------------- None Robot Schematics ------------------ None Fabricated ------------ Nothing Repaired ---------- Nothing Alien Tech Used ----------------- None Achievements -------------- Everything Is Under Control Quick And Dirty Unlikely Earthworm Challenges ------------ None Game ------ Seed AnalysisProjectileTearclaws Manual? 0 Play Time 01:04:12 Cumulative 15.4 hours Start 2025.06.29 @ 21:07:16 End 2025.07.01 @ 15:12:43 Sessions 5 Manual Loads 0 Difficulty Rogue Special Mode None Game No. 6 Rogue 3 Adventurer 1 Explorer 2 Win Type - Total 0 Types 0/0/0/0/0/0/0/0/0/0 Lore% 14 Gallery% 16 Achievement% 14 Wizard Run 0 Options --------- Layout 0 ASCII 0 Keyboard 0 Movement Mouse Keybinds 0 Fullscreen 2 Font 24/Smallcaps Map View 76x50 Zoom Use 0% Tactical HUD 0 Map Filters NONE Filters NONE Steam 1 RUN: c59989ff-fe44-4dc4-bf77-e8b9d194df71